bitfinex-derivatives/quotes_ETHF0:USTF0_20250709
["timestamp","ask_amount","ask_price","bid_price","bid_amount"]
[1752102378519,0.71927,2779.7,2779.6,0.71925]
[1752102378717,2.36997,2779.7,2779.6,0.71925]
[1752102379019,2.36997,2779.7,2779.6,1.35645]
[1752102379420,0.71927,2779.6,2779.5,0.71928]
[1752102379621,2.37838408,2779.6,2779.5,0.71928]
[1752102379820,2.37838408,2779.6,2779.5,1.35648]
[1752102381020,0.995,2779.7,2779.6,0.71927]
[1752102381221,0.995,2779.7,2779.6,1.35647]
[1752102381222,2.36995,2779.7,2779.6,1.35647]
[1752102382523,1.6507,2779.7,2779.6,1.35647]
[1752102383126,2.36995,2779.7,2779.6,1.35647]
[1752102383726,1.6507,2779.7,2779.6,1.35647]
[1752102384125,2.36995,2779.7,2779.6,1.35647]
[1752102384525,1.6507,2779.7,2779.6,1.35647]
[1752102385029,2.36995,2779.7,2779.6,1.35647]
[1752102385226,1.6507,2779.7,2779.6,1.35647]
[1752102385829,0.995,2779.7,2779.6,1.35647]
[1752102386029,1.6507,2779.7,2779.6,1.35647]
[1752102386426,0.995,2779.7,2779.6,1.35647]
[1752102386631,2.36995,2779.7,2779.6,1.35647]
[1752102386832,1.6507,2779.7,2779.6,1.35647]
[1752102387431,2.36995,2779.7,2779.6,1.35647]
[1752102387634,1.6507,2779.7,2779.6,1.35647]
[1752102388027,2.36995,2779.7,2779.6,1.35647]
[1752102388331,1.6507,2779.7,2779.6,1.35647]
[1752102388630,0.995,2779.7,2779.6,1.35647]
[1752102389732,2.36995,2779.7,2779.6,1.35647]
[1752102389926,1.6507,2779.7,2779.6,1.35647]
[1752102390632,3.2078,2780.1,2779.9,0.71918]
[1752102390829,2.71381408,2780.0,2779.9,0.71918]
[1752102391030,2.71381408,2780.0,2779.9,1.35638]
[1752102391333,4.34058408,2780.0,2779.6,1.63837]
[1752102391524,3.62141408,2780.0,2779.9,0.71919]
[1752102391723,2.71381408,2780.0,2779.9,0.71919]
[1752102392031,1.7104,2780.0,2779.9,1.35639]
[1752102392227,1.77388,2780.0,2779.6,0.71927]
[1752102392432,3.2078,2780.1,2780.0,0.71917]
[1752102392433,4.21121408,2780.1,2780.0,0.71917]
[1752102392627,5.77451408,2780.1,2780.0,0.71917]
[1752102392827,6.49365408,2780.1,2780.0,0.71917]
[1752102393031,12.57239408,2780.1,2779.7,0.71924]
[1752102393230,1.72263408,2779.8,2779.7,0.71924]
[1752102393433,3.28593408,2779.8,2779.7,0.71924]
[1752102393638,5.77451408,2779.8,2779.5,0.71929]
[1752102393941,1.62685,2779.7,2779.6,0.71927]
[1752102394234,1.5633,2779.7,2779.6,0.71927]
[1752102394428,1.5633,2779.7,2779.2,1.79843]
[1752102394636,1.062,2779.6,2779.5,0.71929]
[1752102394835,5.92891408,2779.6,2779.5,0.71929]
[1752102395034,5.92891408,2779.6,2779.5,1.35649]
[1752102395231,5.92891408,2779.6,2779.5,0.71929]
[1752102395438,5.92891408,2779.6,2779.5,1.35649]
[1752102395638,5.92891408,2779.6,2779.5,0.71929]
[1752102395934,2.72111408,2779.6,2779.5,1.35649]
[1752102396133,1.7177,2779.6,2779.5,1.35649]
[1752102396937,0.6557,2779.6,2779.5,2.27559]
[1752102400032,0.6557,2779.6,2779.5,1.35649]
[1752102401639,2.60161408,2779.6,2779.2,5.35848497]
[1752102401841,1.72274408,2779.4,2779.2,3.92716]
[1752102402139,0.6345,2779.3,2779.2,4.54308]
[1752102402440,2.6427,2779.3,2779.2,1.33528]
[1752102402938,1.7002,2779.3,2779.2,1.33528]
[1752102403434,3.2078,2779.7,2779.2,1.5551]
[1752102403642,1.0657,2779.6,2779.5,0.71928]
[1752102403933,2.41947,2779.6,2779.5,0.6159]
[1752102404129,3.42288408,2779.6,2779.4,0.7193]
[1752102404334,2.70361408,2779.6,2779.2,2.87434]
[1752102404533,2.70361408,2779.6,2779.5,0.7193]
[1752102404739,4.1503,2780.0,2779.9,0.71919]
[1752102404939,1.0307,2779.9,2779.8,0.7192]
[1752102405139,1.6652,2779.9,2779.8,0.7192]
[1752102405335,3.38781408,2779.9,2779.8,0.6159]
[1752102405534,3.38781408,2779.9,2779.8,1.33512]
[1752102405735,3.38781408,2779.9,2779.8,0.71922]
[1752102405931,3.38781408,2779.9,2779.8,1.33512]
[1752102406135,3.61111408,2779.9,2779.2,5.96419497]
[1752102406437,3.61111408,2779.9,2779.5,0.71929]
[1752102406438,1.72269408,2779.6,2779.5,0.71929]
[1752102406739,2.58041408,2779.6,2779.5,1.33519]
[1752102406942,1.63791408,2779.6,2779.5,0.71929]
[1752102407135,1.63791408,2779.6,2779.5,1.33519]
[1752102408439,2.35718408,2779.6,2779.5,1.33519]
[1752102408639,1.63791408,2779.6,2779.5,1.33519]
[1752102409339,1.0307,2779.9,2779.8,0.71922]
[1752102409641,0.71925,2779.7,2779.6,0.71926]
[1752102409841,0.71929,2779.6,2779.5,0.71929]
[1752102410031,0.6345,2779.6,2779.5,1.33519]
[1752102412141,1.35377,2779.6,2779.5,1.33519]
[1752102412342,0.6345,2779.6,2779.5,1.33519]
[1752102412639,1.35377,2779.6,2779.5,1.33519]
[1752102412835,0.6345,2779.6,2779.5,1.33519]
[1752102413141,1.35377,2779.6,2779.5,0.6159]
[1752102413339,0.7193,2779.5,2779.1,4.88833497]
[1752102413540,3.37911408,2779.5,2779.3,0.71933]
[1752102413938,4.32161408,2779.5,2779.3,0.71933]
[1752102414541,4.32161408,2779.5,2779.4,0.6159]
[1752102414741,4.32161408,2779.5,2779.3,0.71933]
[1752102415342,0.71932,2779.4,2779.3,0.71933]
[1752102415642,1.35382,2779.4,2779.3,0.71933]
[1752102415843,0.6345,2779.4,2779.3,1.33523]
[1752102417545,0.6345,2779.4,2779.3,2.94148117]
[1752102418640,0.6345,2779.4,2779.3,2.22215117]
[1752102418641,2.29632,2779.4,2779.3,2.22215117]
[1752102418847,2.29632,2779.4,2779.0,1.60625117]
[1752102418848,11.58315,2779.4,2779.0,1.60625117]
[1752102419042,1.72281408,2779.1,2779.0,1.60625117]
[1752102419242,3.29981408,2779.1,2779.0,1.60625117]
[1752102420147,3.29981408,2779.1,2779.0,2.32568117]
[1752102420337,0.6345,2779.1,2779.0,2.32583808]
[1752102420536,0.71938,2779.2,2779.0,2.22230808]
[1752102420737,0.6345,2779.1,2779.0,2.22230808]
[1752102420941,1.6175,2779.1,2779.0,2.94173808]
[1752102423246,1.6175,2779.1,2779.0,1.33533]
[1752102423645,0.983,2779.1,2779.0,1.33533]
[1752102424045,1.72276408,2779.3,2779.2,0.71938]
[1752102424249,3.33906408,2779.3,2779.2,1.33528]
[1752102424450,3.33906408,2779.3,2779.2,0.71938]
[1752102424750,3.33906408,2779.3,2779.2,1.33528]
[1752102425243,3.33906408,2779.3,2779.2,0.6159]
[1752102425440,4.28156408,2779.3,2779.2,0.6159]
[1752102427044,4.28156408,2779.3,2779.2,0.5704]
[1752102427549,4.28156408,2779.3,2779.2,1.28978]
[1752102427847,3.33906408,2779.3,2779.2,1.28978]
[1752102428448,3.33906408,2779.3,2779.2,0.5704]
[1752102428649,3.33906408,2779.3,2779.2,1.28978]
[1752102428852,2.61971408,2779.3,2779.2,1.28978]
[1752102429047,1.72268408,2779.7,2779.3,0.71935]
[1752102429248,1.72268408,2779.7,2779.5,0.71928]
[1752102429249,0.9969,2779.6,2779.5,0.71928]
[1752102429544,1.658,2779.6,2779.5,1.34378]
[1752102429751,2.37727,2779.6,2779.5,1.34378]
[1752102430951,2.37727,2779.6,2779.5,0.6245]
[1752102431153,1.79826,2779.5,2779.0,0.71941]
[1752102431344,1.66451408,2779.1,2779.0,1.34391]
[1752102431548,2.38391408,2779.1,2779.0,1.34391]
[1752102431748,3.38081408,2779.1,2779.0,1.34391]
[1752102432350,1.658,2779.1,2779.0,1.34393]
[1752102432550,2.66141408,2779.1,2779.0,1.34393]
[1752102432848,3.38081408,2779.1,2779.0,1.34393]
[1752102433553,2.66141408,2779.1,2779.0,1.34393]
[1752102433951,3.38081408,2779.1,2779.0,1.34393]
[1752102434353,3.38081408,2779.1,2779.0,0.6245]
[1752102435054,3.38081408,2779.1,2779.0,1.34393]
[1752102436154,3.38081408,2779.1,2779.0,0.6245]
[1752102437053,3.38081408,2779.1,2779.0,1.34393]
[1752102438058,2.66141408,2779.1,2779.0,1.34393]
[1752102438251,2.3774,2779.1,2779.0,1.34393]
[1752102438452,0.9969,2779.1,2779.0,1.34393]
[1752102439254,1.658,2779.1,2779.0,1.34393]
[1752102439454,1.658,2779.1,2779.0,2.29683]
[1752102439652,0.9969,2779.1,2779.0,2.29683]
[1752102439857,1.658,2779.1,2779.0,2.29683]
[1752102440055,0.9969,2779.1,2779.0,2.29683]
[1752102440356,1.658,2779.1,2779.0,1.34393]
[1752102440953,3.38081408,2779.1,2779.0,1.34393]
[1752102441153,2.66141408,2779.1,2779.0,1.34393]
[1752102444059,3.2078,2779.4,2779.3,0.71935]
[1752102444263,4.877,2779.4,2779.3,1.34385]
[1752102444565,1.6692,2779.4,2779.3,1.34385]
[1752102444763,1.0081,2779.4,2779.3,1.34385]
[1752102445058,0.71929,2779.6,2779.5,0.7193]
[1752102445260,0.71929,2779.6,2779.4,0.71932]
[1752102445261,0.71931,2779.5,2779.4,0.71932]
[1752102445461,1.38041,2779.5,2779.4,1.34382]
[1752102446964,2.96951408,2779.6,2779.5,0.7193]
[1752102446965,1.70447,2779.6,2779.5,0.7193]
[1752102447165,1.6463,2779.6,2779.5,1.3438]
[1752102447469,0.9852,2779.6,2779.5,1.3438]
[1752102447765,3.22506853,2779.9,2779.8,0.71922]
[1752102447965,0.6611,2779.9,2779.8,0.71922]
[1752102448160,2.38371408,2779.9,2779.8,0.71922]
[1752102448362,0.6611,2779.9,2779.8,1.34372]
[1752102448566,0.9872,2780.0,2779.9,0.7192]
[1752102448767,0.9872,2780.0,2779.9,1.3437]
[1752102448768,1.6483,2780.0,2779.9,1.3437]
[1752102449469,2.65171408,2780.0,2779.9,1.3437]
[1752102449666,3.37088408,2780.0,2779.9,1.3437]
[1752102450064,2.65171408,2780.0,2779.9,1.3437]
[1752102450566,0.7192,2779.9,2779.7,0.71923]
[1752102450770,1.66451408,2779.8,2779.6,0.71925]
[1752102450964,1.72266408,2779.7,2779.6,0.71925]
[1752102451163,5.59156408,2779.7,2779.6,0.71925]
[1752102451567,4.87231408,2779.7,2779.6,1.34375]
[1752102453171,6.57246408,2779.7,2779.3,1.3007]
[1752102453367,1.00341408,2779.5,2779.4,0.71932]
[1752102453569,1.66451408,2779.5,2779.4,1.34382]
[1752102454666,0.6611,2779.5,2779.4,1.34382]
[1752102455466,0.9834,2779.6,2779.5,0.7193]
[1752102455666,1.6445,2779.6,2779.5,1.3438]
[1752102456566,1.6445,2779.6,2779.5,2.2967]
[1752102456870,1.6445,2779.6,2779.5,1.3438]
[1752102459566,1.6445,2779.6,2779.5,1.359]
[1752102459768,2.6443,2779.6,2779.5,0.7193]
[1752102460172,2.6443,2779.6,2779.5,1.359]
[1752102460365,1.6445,2779.6,2779.5,1.359]
[1752102461469,1.6445,2779.6,2779.5,1.3026]
[1752102461865,1.6445,2779.6,2779.5,2.3009]
[1752102462773,1.6445,2779.6,2779.5,1.3026]
[1752102465275,1.6445,2779.6,2779.5,2.3009]
[1752102465570,1.6445,2779.6,2779.5,1.3026]
[1752102467473,1.6445,2779.6,2779.5,2.3009]
[1752102468275,3.2078,2780.0,2779.9,0.7192]
[1752102468476,3.8344,2780.0,2779.9,1.3589]
[1752102468876,3.8344,2780.0,2779.9,0.7192]
[1752102469078,3.8344,2780.0,2779.9,1.3589]
[1752102469272,3.2078,2780.0,2779.9,1.3589]
[1752102469581,3.8344,2780.0,2779.9,1.3589]
[1752102470383,1.019,2780.1,2780.0,0.71917]
[1752102470681,1.6456,2780.1,2780.0,1.35887]
[1752102471179,1.6456,2780.1,2780.0,0.71917]
[1752102471581,1.6456,2780.1,2780.0,1.35887]
[1752102474678,1.019,2780.1,2780.0,1.35887]
[1752102474884,1.6456,2780.1,2780.0,1.35887]
[1752102476185,1.019,2780.1,2780.0,1.35887]
[1752102476383,1.6456,2780.1,2780.0,1.35887]
[1752102476783,1.6456,2780.1,2780.0,2.35717]
[1752102477184,4.92662,2780.6,2780.2,1.79778]
[1752102477379,4.2488,2780.6,2780.5,0.71904]
[1752102477584,1.6676,2780.6,2780.5,1.35874]
[1752102477987,1.6676,2780.6,2780.5,0.71904]
[1752102478181,1.6676,2780.6,2780.5,1.35874]
[1752102478380,3.67081408,2780.6,2780.5,0.71904]
[1752102478582,6.87861408,2780.6,2780.5,0.71904]
[1752102478783,6.87861408,2780.6,2780.5,1.35874]
[1752102478984,7.59763408,2780.6,2780.5,1.35874]
[1752102479283,5.87881408,2780.6,2780.5,1.35874]
[1752102479485,4.8754,2780.6,2780.5,1.35874]
[1752102479787,5.59442,2780.6,2780.5,1.35874]
[1752102480480,4.8754,2780.6,2780.5,1.35874]
[1752102480982,5.59442,2780.6,2780.5,1.35874]
[1752102481183,5.8752,2780.6,2780.1,1.6031827]
[1752102481483,0.71914,2780.2,2780.1,0.71914]
[1752102481688,1.72252408,2780.3,2780.2,0.71912]
[1752102481888,2.34912408,2780.3,2780.2,1.35882]
[1752102483583,1.63001408,2780.3,2780.2,1.35882]
[1752102483785,0.6266,2780.3,2780.2,1.35882]
[1752102483986,1.34569,2780.3,2780.2,1.35882]
[1752102486283,0.71909,2780.4,2780.3,0.71909]
[1752102486484,3.2078,2780.6,2780.5,0.71904]
[1752102487084,3.2078,2780.6,2780.5,1.97714]
[1752102487378,3.2078,2780.9,2780.8,0.71896]
[1752102487580,3.8344,2780.9,2780.8,0.71896]
[1752102487985,3.2078,2780.9,2780.8,0.71896]
[1752102488288,4.55334,2780.9,2780.8,0.71896]
[1752102488483,3.8344,2780.9,2780.8,0.71896]
[1752102488689,4.52646853,2781.2,2780.9,0.71892]
[1752102488690,7.43628261,2781.2,2780.9,0.71892]
[1752102488889,0.6266,2781.0,2780.7,3.05554]
[1752102489188,0.6266,2781.0,2780.9,0.71894]
[1752102489587,0.71894,2780.9,2780.8,0.71895]
[1752102489786,0.71902,2780.6,2780.1,1.79785]
[1752102489991,1.00341408,2780.4,2780.3,0.71909]
[1752102490192,0.6422,2780.4,2780.3,0.71909]
[1752102490390,1.36127,2780.4,2780.3,1.37489]
[1752102490785,0.6422,2780.4,2780.3,1.37489]
[1752102491288,0.6422,2780.4,2780.3,0.6558]
[1752102491489,4.90464,2780.6,2780.5,0.71904]
[1752102491682,0.71902,2780.6,2780.5,0.6558]
[1752102491888,4.56902,2780.6,2780.5,0.6558]
[1752102492390,5.89282,2780.6,2780.5,0.6558]
[1752102492782,0.71912,2780.2,2780.1,1.6031827]
[1752102492987,4.21121408,2780.2,2779.7,0.71924]
[1752102493188,1.72265408,2779.8,2779.4,2.15068497]
[1752102493383,1.72265408,2779.8,2779.6,0.71925]
[1752102493588,1.72265408,2779.8,2779.7,2.86993497]
[1752102493991,1.72265408,2779.8,2779.7,0.71925]
[1752102494195,1.00341408,2779.8,2779.2,7.15692497]
[1752102494494,1.72265408,2779.8,2779.3,1.2094]
[1752102494794,1.72265408,2779.8,2779.7,0.71925]
[1752102495290,2.62341408,2779.8,2779.7,0.71925]
[1752102495493,2.62341408,2779.8,2779.7,1.37505]
[1752102496494,3.34264408,2779.8,2779.7,1.37505]
[1752102496690,4.41854408,2779.8,2779.7,1.37505]
[1752102496988,3.69931408,2779.8,2779.7,1.37505]
[1752102497189,4.41853408,2779.8,2779.7,1.37505]
[1752102497994,0.71931,2779.5,2779.4,0.71931]
[1752102498195,2.33931,2779.5,2779.4,1.37511]
[1752102498391,1.62,2779.5,2779.4,1.37511]
[1752102499592,0.6422,2779.5,2779.4,1.37511]
[1752102499894,1.3615,2779.5,2779.4,0.6558]
[1752102500099,1.62,2779.5,2779.0,2.15068497]
[1752102500291,1.00341408,2779.2,2779.1,0.71941]
[1752102500496,1.98121408,2779.4,2779.3,0.71936]
[1752102500699,1.98121408,2779.4,2779.2,0.71936]
[1752102500891,0.71936,2779.3,2779.2,0.71936]
[1752102501192,0.7195,2778.8,2778.7,0.71949]
[1752102501392,1.3617,2778.8,2778.7,1.37529]
[1752102501598,4.2158,2779.3,2779.1,0.71938]
[1752102501792,4.858,2779.3,2779.2,0.71938]
[1752102501994,5.8358,2779.3,2779.2,0.71938]
[1752102502190,5.8358,2779.3,2779.2,1.37518]
[1752102502596,5.8358,2779.3,2779.2,0.71938]
[1752102503000,0.71943,2779.1,2779.0,0.71943]
[1752102503190,0.71946,2779.0,2778.9,0.71946]
[1752102503395,2.33945,2779.0,2778.9,0.71946]
[1752102504297,4.8278,2779.0,2778.9,0.71946]
[1752102504493,3.85,2779.0,2778.9,1.37526]
[1752102505302,4.8278,2779.0,2778.9,1.37526]
[1752102505802,3.85,2779.0,2778.9,1.37526]
[1752102508397,0.71948,2778.9,2778.6,1.2203]
[1752102508604,1.69728,2778.9,2778.8,0.71946]
[1752102508901,2.33948,2778.9,2778.8,0.71946]
[1752102509301,2.33948,2778.9,2778.8,1.37526]
[1752102509499,0.6422,2778.9,2778.8,0.71946]
[1752102509705,1.62,2778.9,2778.8,0.71946]
[1752102510201,2.33946,2778.9,2778.8,1.37526]
[1752102512398,1.62,2778.9,2778.8,1.37526]
[1752102513106,1.36166,2778.9,2778.8,1.37526]
[1752102513410,0.6422,2778.9,2778.8,1.37526]
[1752102513708,0.6422,2778.9,2778.8,0.71946]
[1752102513910,1.36166,2778.9,2778.8,0.71946]
[1752102514709,0.71948,2778.8,2778.7,0.71949]
[1752102514912,1.7297,2778.8,2778.2,1.7991]
[1752102515208,1.36181,2778.3,2778.2,0.71964]
[1752102515607,2.44931,2778.3,2778.2,0.71964]
[1752102516210,2.44931,2778.3,2778.2,1.37544]
[1752102516411,1.7297,2778.3,2778.2,0.71964]
[1752102516810,2.44931,2778.3,2778.2,1.37544]
[1752102517012,2.44931,2778.3,2778.2,0.71964]
[1752102517206,2.44931,2778.3,2778.2,1.37544]
[1752102517406,2.44931,2778.3,2778.2,0.6558]
[1752102517607,2.44931,2778.3,2778.2,1.37544]
[1752102517812,1.7297,2778.3,2778.2,1.37544]
[1752102518309,2.44931,2778.3,2778.2,1.37544]
[1752102518510,1.80711,2778.3,2778.2,0.71964]
[1752102518710,2.6382,2778.3,2778.2,0.71964]
[1752102519012,2.6382,2778.3,2778.2,1.37544]
[1752102519214,2.6382,2778.3,2778.2,0.71964]
[1752102519912,2.6382,2778.3,2778.2,1.36424]
[1752102520114,1.7296,2778.3,2778.2,1.36424]
[1752102520506,2.6381,2778.3,2778.2,1.36424]
[1752102521113,3.35771,2778.3,2778.2,0.71964]
[1752102521314,2.6381,2778.3,2778.2,0.71964]
[1752102522107,2.6381,2778.3,2778.2,1.36424]
[1752102522311,3.35771,2778.3,2778.2,1.36424]
[1752102522514,2.6381,2778.3,2778.2,1.36424]
[1752102523317,1.7296,2778.3,2778.2,1.36424]
[1752102523612,1.0875,2778.3,2778.2,1.36424]
[1752102523915,1.7296,2778.3,2778.2,1.36424]
[1752102524112,1.0875,2778.3,2778.2,1.36424]
[1752102524512,1.7296,2778.3,2778.2,1.36424]
[1752102526319,1.7296,2778.3,2778.2,1.23744]
[1752102530120,2.44921,2778.3,2778.2,1.23744]
[1752102530819,3.35771,2778.3,2778.2,1.23744]
[1752102531019,0.71967,2778.2,2778.1,0.71967]
[1752102531218,2.27027,2778.2,2778.1,1.36427]
[1752102531418,2.27027,2778.2,2778.1,0.71967]
[1752102531615,2.27027,2778.2,2778.1,1.36427]
[1752102532524,1.5506,2778.2,2778.1,1.36427]
[1752102532722,0.6421,2778.2,2778.1,1.36427]
[1752102533019,1.0875,2778.3,2778.2,0.71964]
[1752102533219,1.7296,2778.3,2778.2,1.36424]
[1752102535122,0.9085,2778.7,2778.6,0.71954]
[1752102535314,2.5459,2778.7,2778.6,0.71954]
[1752102535517,2.5459,2778.7,2778.6,1.36414]
[1752102535822,0.71949,2778.8,2778.7,0.71948]
[1752102536124,2.42289,2778.8,2778.7,1.36408]
[1752102536519,3.2078,2778.9,2778.8,0.71948]
[1752102536726,3.2078,2778.9,2778.8,1.36408]
[1752102536925,3.8499,2778.9,2778.8,2.62748]
[1752102537127,3.2078,2778.9,2778.8,2.62748]
[1752102537727,3.8499,2778.9,2778.8,2.62748]
[1752102538131,1.0613,2779.0,2778.9,0.71946]
[1752102538325,1.7034,2779.0,2778.9,1.36406]
[1752102539228,2.42283,2779.0,2778.9,1.36406]
[1752102540031,0.71946,2778.9,2778.8,1.98287]
[1752102540231,1.36156,2778.9,2778.8,0.71947]
[1752102540436,2.27006,2778.9,2778.8,0.71947]
[1752102540828,2.27006,2778.9,2778.8,1.36407]
[1752102541024,0.71951,2778.7,2778.6,3.2078]
[1752102541224,0.7196,2778.4,2778.2,3.2078]
[1752102541430,1.3617,2778.4,2778.3,0.6446]
[1752102541629,0.6421,2778.4,2778.3,1.36419]
[1752102542032,1.36169,2778.4,2778.3,1.36419]
[1752102542232,3.27360408,2778.4,2778.3,0.6446]
[1752102542536,0.71967,2778.1,2777.9,2.15068497]
[1752102542736,1.36177,2778.1,2778.0,0.6446]
[1752102543029,1.36177,2778.1,2777.8,5.35848497]
[1752102543030,0.71972,2777.9,2777.8,5.35848497]
[1752102543233,5.47812,2777.9,2777.8,0.38468497]
[1752102543437,5.47812,2777.9,2777.4,3.21575993]
[1752102543438,11.55776,2777.9,2777.4,3.21575993]
[1752102543734,0.71985,2777.4,2777.3,3.21575993]
[1752102543935,0.6421,2777.4,2777.0,1.2994]
[1752102544338,0.7199,2777.3,2777.0,2.2633]
[1752102544540,1.362,2777.3,2777.2,0.6446]
[1752102544737,0.6421,2777.3,2777.2,1.3645]
[1752102544937,1.36197,2777.3,2777.2,0.7199]
[1752102545233,0.7199,2777.2,2777.1,0.71991]
[1752102545435,0.71992,2777.2,2777.1,0.71993]
[1752102545636,0.9085,2777.3,2777.1,1.36453]
[1752102545637,0.71989,2777.3,2777.1,1.36453]
[1752102545835,0.6421,2777.2,2777.1,1.36453]
[1752102550946,1.362,2777.2,2777.1,1.36453]
[1752102551146,0.6421,2777.2,2776.8,4.1717]
[1752102551444,1.9944,2777.5,2777.1,0.6644]
[1752102551646,1.0337,2777.5,2777.1,4.8007]
[1752102551946,1.75354,2777.5,2777.4,0.71985]
[1752102552147,0.71986,2777.4,2777.3,0.71986]
[1752102552442,1.0337,2777.5,2777.4,0.71985]
[1752102552648,4.97742,2777.9,2777.8,0.71974]
[1752102552946,4.97742,2777.9,2777.7,0.71976]
[1752102552947,0.71976,2777.8,2777.7,0.71976]
[1752102553147,5.93814,2777.9,2777.8,0.71974]
[1752102553346,0.71975,2777.8,2777.7,0.71975]
[1752102553549,1.38455,2777.8,2777.7,1.38415]
[1752102554549,4.2577,2777.9,2777.8,0.71974]
[1752102554742,4.9225,2777.9,2777.8,1.38414]
[1752102554942,1.0499,2777.9,2777.8,1.38414]
[1752102555143,1.7147,2777.9,2777.8,1.38414]
[1752102555847,1.7147,2777.9,2777.8,2.70874]
[1752102556051,2.43143,2778.2,2778.1,0.71967]
[1752102556346,3.2078,2778.5,2778.1,1.5929]
[1752102556649,0.6648,2778.2,2778.1,1.38407]
[1752102557348,1.38444,2778.2,2778.1,1.38407]
[1752102557549,0.6648,2778.2,2778.1,1.38407]
[1752102557748,1.68031,2778.4,2778.3,0.71962]
[1752102557950,4.1911,2778.5,2778.4,0.71959]
[1752102558150,4.8559,2778.5,2778.4,0.71959]
[1752102558352,1.6481,2778.5,2778.4,1.38399]
[1752102558648,1.6481,2778.5,2778.4,0.71959]
[1752102558841,2.36766,2778.5,2778.4,0.71959]
[1752102559046,1.6481,2778.5,2778.4,1.38399]
[1752102559248,2.36766,2778.5,2778.4,1.38399]
[1752102560246,0.71964,2778.3,2778.1,1.2889]
[1752102560447,1.6255,2778.2,2778.1,1.38404]
[1752102560651,0.6648,2778.2,2778.1,1.38404]
[1752102560851,0.6648,2778.2,2778.1,1.54544212]
[1752102562148,4.1911,2778.5,2778.4,0.71959]
[1752102562344,4.8559,2778.5,2778.4,1.38399]
[1752102562551,5.57547,2778.5,2778.4,1.38399]
[1752102562853,4.8559,2778.5,2778.4,1.54539212]
[1752102563446,4.1911,2778.5,2778.4,2.47389212]
[1752102563656,3.2078,2778.5,2778.4,2.47389212]
[1752102564251,1.78039,2778.8,2778.7,0.71951]
[1752102564454,1.7257,2778.8,2778.7,1.38391]
[1752102564655,2.44519,2778.8,2778.7,0.71951]
[1752102564851,2.44519,2778.8,2778.7,1.38391]
[1752102565155,2.44519,2778.8,2778.7,1.54531212]
[1752102565350,3.40589,2778.8,2778.7,0.16140212]
[1752102565546,4.67189,2778.8,2778.7,0.16140212]
[1752102568456,0.54785201,2778.6,2778.5,0.71956]
[1752102568655,4.42045201,2778.6,2778.5,0.71956]
[1752102569063,0.71958,2778.5,2778.4,0.71957]
[1752102569358,1.38438,2778.5,2778.4,0.71957]
[1752102569559,1.38438,2778.5,2778.4,1.38397]
[1752102570254,0.6648,2778.5,2778.4,1.38397]
[1752102570661,1.38436,2778.5,2778.4,0.71959]
[1752102570855,1.38436,2778.5,2778.4,1.38399]
[1752102571052,0.6648,2778.5,2778.4,1.38399]
[1752102571255,1.38436,2778.5,2778.4,1.38399]
[1752102572357,1.38436,2778.5,2778.4,0.6644]
[1752102572550,2.34506,2778.5,2778.4,1.38399]
[1752102574466,0.6648,2778.5,2778.4,1.38399]
[1752102574764,0.6648,2778.5,2778.4,2.31249]
[1752102575257,0.6648,2778.5,2778.4,1.38399]
[1752102575859,1.38436,2778.5,2778.4,0.6644]
[1752102576055,1.79904,2778.4,2778.0,1.60051955]
[1752102576257,1.6255,2778.5,2777.9,1.60051955]
[1752102576258,0.71969,2778.0,2777.9,1.60051955]
[1752102576458,0.71972,2777.9,2777.8,1.60051955]
[1752102576760,5.6738316,2777.9,2777.8,1.60051955]
[1752102576961,5.6738316,2777.9,2777.5,1.60051955]
[1752102576962,0.71977,2777.8,2777.5,1.60051955]
[1752102577261,25.88177,2777.7,2777.6,2.32029955]
[1752102577460,26.54657,2777.7,2777.6,2.98469955]
[1752102577659,26.54657,2777.7,2777.6,1.38418]
[1752102577858,26.54657,2777.7,2777.6,0.71978]
[1752102578063,0.6648,2777.7,2777.6,1.38418]
[1752102578259,25.8258,2777.7,2777.6,3.92139955]
[1752102578659,25.8258,2777.7,2777.6,2.32088]
[1752102579162,3.2078,2778.0,2777.6,1.6011]
[1752102579362,25.16,2777.9,2777.6,2.9179]
[1752102579565,25.87972,2777.9,2777.8,0.71974]
[1752102579766,25.8013,2777.9,2777.8,0.71974]
[1752102580163,25.8013,2777.9,2777.8,1.38634]
[1752102580464,25.7993,2777.9,2777.8,1.38634]
[1752102582367,26.51902,2777.9,2777.8,1.38634]
[1752102583164,25.7993,2777.9,2777.8,1.38634]
[1752102583669,26.51902,2777.9,2777.8,1.38634]
[1752102583968,25.7993,2777.9,2777.8,1.38634]
[1752102584370,26.51902,2777.9,2777.8,1.38634]
[1752102584766,26.51902,2777.9,2777.8,0.6666]
[1752102584972,27.51612,2777.9,2777.8,0.68717175]
[1752102585272,27.51612,2777.9,2777.8,1.40691175]
[1752102585476,27.51612,2777.9,2777.8,0.68717175]
[1752102588177,27.51612,2777.9,2777.8,0.02057175]
[1752102588572,28.75092,2777.9,2777.8,0.02057175]
[1752102588773,27.11252,2777.9,2777.8,0.02057175]
[1752102588978,29.75522998,2777.9,2777.8,0.02057175]
[1752102589679,34.75522998,2777.9,2777.8,0.02057175]
[1752102590875,9.59722998,2777.9,2777.8,0.02057175]
[1752102591075,34.74122998,2777.9,2777.8,0.02057175]
[1752102591477,4.59722998,2777.9,2777.8,0.02057175]
[1752102591681,27.50112,2777.9,2777.8,0.68717175]
[1752102591878,28.50542998,2777.9,2777.8,0.68717175]
[1752102592076,28.50542998,2777.9,2777.8,0.02057175]
[1752102592981,2.35812,2777.9,2777.8,0.74031175]
[1752102593281,25.7823,2777.9,2777.8,1.40691175]
[1752102593672,0.6413,2777.9,2777.8,1.40691175]